bitfinex/quotes_SOLUSD_20220118
["timestamp","ask_amount","ask_price","bid_price","bid_amount"]
[1642471892839,10.9468,140.28,140.25,4.05240871]
[1642471893040,10.6968,140.28,140.23,0.17828394]
[1642471893240,10.9568,140.28,140.23,0.17828394]
[1642471893439,45.26578771,140.27,140.23,0.17828394]
[1642471893845,10.9568,140.28,140.23,0.17828394]
[1642471894242,0.25,140.27,140.23,0.17828394]
[1642471894444,2.852,140.26,140.23,0.17828394]
[1642471894651,16.76479994,140.25,140.23,0.17828394]
[1642471894844,73.932,140.24,140.23,0.17828394]
[1642471895245,118.21479228,140.24,140.23,0.17828394]
[1642471895643,58.09539228,140.24,140.23,0.17828394]
[1642471895845,65.87644041,140.24,140.23,0.17828394]
[1642471896044,64.09539228,140.24,140.23,0.17828394]
[1642471896244,129.17539228,140.24,140.23,0.17828394]
[1642471896844,135.17539228,140.24,140.23,0.17828394]
[1642471898444,136.95644041,140.24,140.23,0.17828394]
[1642471898645,136.95644041,140.24,140.2,2.851]
[1642471898845,0.25,140.23,140.2,2.851]
[1642471899144,46.58772554,140.21,140.2,2.851]
[1642471899344,46.83772554,140.21,140.2,2.851]
[1642471899743,117.91772554,140.21,140.2,2.851]
[1642471900549,128.62032554,140.21,140.2,2.851]
[1642471901176,82.0326,140.21,140.2,2.851]
[1642471901349,82.2926,140.21,140.2,2.851]
[1642471901549,11.2126,140.21,140.2,2.851]
[1642471902350,17.27699994,140.21,140.2,2.851]
[1642471902552,88.35699994,140.21,140.2,2.851]
[1642471903450,17.27699994,140.21,140.2,2.851]
[1642471905754,17.02699994,140.21,140.2,2.851]
[1642471906153,17.02699994,140.21,140.2,2.351]
[1642471906854,88.10699994,140.21,140.2,2.351]
[1642471907054,88.35699994,140.21,140.2,2.351]
[1642471909557,97.20899994,140.21,140.2,2.351]
[1642471912260,88.35699994,140.21,140.2,2.351]
[1642471913761,17.01699994,140.21,140.2,2.351]
[1642471914961,88.09699994,140.21,140.14,27.4642]
[1642471915161,3.103,140.2,140.14,30.1122]
[1642471915360,10.7032,140.19,140.14,34.16460871]
[1642471915763,39.03601751,140.18,140.14,34.16460871]
[1642471916462,39.03601751,140.18,140.14,30.1122]
[1642471917264,39.29601751,140.18,140.14,30.1122]
[1642471918070,39.29601751,140.18,140.14,32.9652]
[1642471919366,39.29601751,140.18,140.14,30.1122]
[1642471919566,0.26,140.18,140.15,0.25]
[1642471919766,6.06439994,140.17,140.16,2.853]
[1642471919967,2.853,140.23,140.15,3.103]
[1642471920468,2.853,140.24,140.15,3.103]
[1642471920670,40.62617405,140.23,140.16,22.7024]
[1642471920870,40.62617405,140.23,140.16,26.77414657]
[1642471921068,10.7005,140.22,140.16,26.77414657]
[1642471921669,0.25,140.21,140.16,22.7024]
[1642471921871,10.7005,140.22,140.16,22.7024]
[1642471922070,10.7005,140.22,140.17,0.25]
[1642471922270,40.62617405,140.23,140.17,0.25]
[1642471922482,0.25,140.22,140.17,0.25]
[1642471923715,2.853,140.26,140.18,2.853]
[1642471923910,2.852,140.3,140.18,10.248]
[1642471924108,2.852,140.3,140.19,10.48]
[1642471924310,2.852,140.3,140.2,2.852]
[1642471924710,2.852,140.3,140.19,0.25]
[1642471924711,49.52517581,140.29,140.19,0.25]
[1642471924916,2.852,140.28,140.19,3.102]
[1642471925110,2.852,140.28,140.18,10.6972]
[1642471925111,10.6968,140.27,140.18,2.852]
[1642471925310,3.102,140.26,140.17,10.23]
[1642471925513,3.102,140.26,140.16,4.05240871]
[1642471925711,41.78501255,140.25,140.16,4.05240871]
[1642471925913,2.852,140.24,140.16,4.05240871]
[1642471926211,3.102,140.24,140.16,4.05240871]
[1642471926411,55.24101056,140.22,140.17,4.05240871]
[1642471926814,0.25,140.21,140.17,4.05240871]
[1642471927215,0.25,140.21,140.15,10.23]
[1642471927414,0.25,140.21,140.16,0.25]
[1642471928418,10.7016,140.21,140.16,0.25]
[1642471928616,44.53941056,140.22,140.17,2.853]
[1642471929416,0.25,140.21,140.17,2.853]
[1642471929617,10.9514,140.21,140.16,0.25]
[1642471930619,11.2114,140.21,140.16,0.25]
[1642471931219,0.26,140.21,140.16,0.25]
[1642471931618,44.53941056,140.22,140.16,0.25]
[1642471931819,44.79941056,140.22,140.16,0.25]
[1642471932821,44.79941056,140.22,140.16,3.103]
[1642471933121,10.9512,140.21,140.16,2.853]
[1642471933323,2.853,140.2,140.15,4.05240871]
[1642471933525,2.853,140.2,140.15,10.05240871]
[1642471933728,0.25,140.19,140.15,4.05240871]
[1642471933922,2.853,140.18,140.15,10.05240871]
[1642471934122,3.03219997,140.17,140.15,6.0]
[1642471934324,52.61751714,140.17,140.15,6.0]
[1642471934622,52.61751714,140.17,140.13,0.35667364]
[1642471936623,52.36751714,140.17,140.13,0.35667364]
[1642471938629,2.854,140.16,140.13,0.35667364]
[1642471938829,3.104,140.16,140.13,0.35667364]
[1642471940127,10.706,140.15,140.13,0.35667364]
[1642471941234,10.966,140.15,140.13,0.35667364]
[1642471941430,44.86406547,140.14,140.13,0.35667364]
[1642471942328,50.92846541,140.14,140.13,0.35667364]
[1642471943551,6.06439994,140.14,140.13,0.35667364]
[1642471945152,6.31439994,140.14,140.13,0.35667364]
[1642471945353,6.57439994,140.14,140.13,0.35667364]
[1642471945554,6.32439994,140.14,140.13,0.35667364]
[1642471945752,6.06439994,140.14,140.13,0.35667364]
[1642471947157,6.32439994,140.14,140.13,0.35667364]
[1642471948359,6.06439994,140.14,140.13,0.35667364]
[1642471950259,3.03219997,140.14,140.13,0.35667364]
[1642471950459,2.854,140.17,140.13,0.35667364]
[1642471950858,0.25,140.16,140.13,0.35667364]
[1642471951459,3.03219997,140.15,140.13,0.35667364]
[1642471953964,43.99320397,140.15,140.13,0.35667364]
[1642471954164,3.03219997,140.14,140.13,0.35667364]
[1642471961378,43.99320397,140.15,140.13,0.35667364]
[1642471961673,40.961004,140.15,140.13,0.35667364]
[1642471962074,2.854,140.14,140.13,0.35667364]
[1642471962277,3.104,140.14,140.09,8.854]
[1642471962475,74.184,140.14,140.09,8.854]
[1642471963074,74.184,140.14,140.09,6.0]
[1642471963276,84.8919,140.14,140.06,60.21650871]
[1642471963476,86.67294813,140.14,140.06,4.05240871]
[1642471963677,92.67294813,140.14,140.06,4.05240871]
[1642471963877,102.90294813,140.14,140.06,4.05240871]
[1642471964076,102.90294813,140.14,140.04,6.90640871]
[1642471964479,103.16294813,140.14,140.04,6.90640871]
[1642471965280,103.16294813,140.14,140.02,4.05240871]
[1642471965480,231.03294813,140.14,140.02,4.05240871]
[1642471966380,234.7853252,140.14,140.02,36.89209264]
[1642471966981,234.7853252,140.14,140.0,48.8995]
[1642471967180,234.7853252,140.14,140.0,54.8995]
[1642471967579,234.7853252,140.14,140.0,65.611]
[1642471967780,231.03294813,140.14,140.0,65.611]
[1642471967980,231.03294813,140.14,140.01,46.60307578]
[1642471968681,231.03294813,140.14,140.01,50.67874624]
[1642471969483,231.03294813,140.14,140.01,49.45807578]
[1642471969885,231.03294813,140.14,140.01,60.16887578]
[1642471970686,231.03294813,140.14,140.02,24.6705]
[1642471971385,231.03294813,140.14,140.01,49.45807578]
[1642471974790,231.03294813,140.14,140.01,55.45807578]
[1642471976620,231.03294813,140.14,140.02,4.07534961]
[1642471976819,231.03294813,140.14,140.02,10.07534961]
[1642471978120,230.78294813,140.14,140.02,10.07534961]
[1642471978520,230.52294813,140.14,140.02,10.07534961]
[1642471978720,100.8719,140.14,140.03,2.855]
[1642471978923,100.8719,140.14,140.05,21.7671149]
[1642471979121,104.62427707,140.14,140.05,21.7671149]
[1642471979522,98.62427707,140.14,140.05,21.7671149]
[1642471980024,94.8719,140.14,140.05,21.7671149]
[1642471980824,10.9582,140.13,140.05,21.7671149]
[1642471981221,11.2182,140.13,140.05,21.7671149]
[1642471981922,10.9582,140.13,140.05,21.7671149]
[1642471982323,10.9582,140.13,140.05,32.4748149]
[1642471982825,44.61990197,140.12,140.05,32.4748149]
[1642471983224,0.25,140.11,140.05,32.4748149]
[1642471983425,0.25,140.11,140.05,38.4748149]
[1642471984324,0.25,140.12,140.05,38.4748149]
[1642471984525,0.25,140.12,140.05,32.4748149]
[1642471986026,3.105,140.12,140.05,38.4748149]
[1642471986525,41.24580637,140.11,140.05,16.7077]
[1642471987526,41.50580637,140.11,140.05,16.7077]
[1642471989427,41.50580637,140.11,140.05,10.7077]
[1642471989829,41.50580637,140.11,140.05,19.77687061]
[1642471990829,41.50580637,140.11,140.05,25.77687061]
[1642471991028,10.7074,140.14,140.06,3.105]
[1642471991228,2.855,140.18,140.08,10.7055]
[1642471991429,2.855,140.18,140.09,23.1027]
[1642471992028,40.09533008,140.17,140.09,23.1027]
[1642471993629,50.80053008,140.17,140.09,23.1027]
[1642471994534,0.25,140.16,140.09,25.9567]
[1642471996332,10.956,140.16,140.09,25.9567]
[1642471997837,13.81,140.16,140.09,25.9567]
[1642471998034,3.104,140.16,140.09,25.9567]
[1642471998335,3.364,140.16,140.09,25.9567]
[1642472000237,3.364,140.16,140.09,23.1027]
[1642472000637,14.0703,140.16,140.09,23.1027]
[1642472002036,85.1503,140.16,140.09,23.1027]
[1642472003438,13.5603,140.16,140.09,23.1027]
[1642472003636,40.09533008,140.17,140.1,2.854]
[1642472003837,40.09533008,140.17,140.1,9.104]
[1642472004037,40.09533008,140.17,140.1,8.854]
[1642472005437,40.35533008,140.17,140.1,2.854]
[1642472005637,40.35533008,140.17,140.11,10.7031]
[1642472008443,40.09533008,140.17,140.11,10.7031]
[1642472008644,2.854,140.19,140.12,10.48]
[1642472008841,1.48200397,140.2,140.14,10.7008]
[1642472009241,0.25,140.19,140.14,10.7008]
[1642472009442,0.25,140.19,140.13,23.1641]
[1642472010045,0.25,140.19,140.13,33.8657]
[1642472010544,43.25967551,140.19,140.13,33.8657]
[1642472011444,43.25967551,140.19,140.13,23.1641]
[1642472012246,43.51967551,140.19,140.13,23.1641]
[1642472012844,49.51967551,140.19,140.13,23.1641]
[1642472013044,49.26967551,140.19,140.13,23.1641]
[1642472014246,0.25,140.18,140.13,23.1641]
[1642472014554,13.5584,140.17,140.13,23.1641]
[1642472014746,0.25,140.16,140.13,23.1641]
[1642472015147,6.06439994,140.15,140.13,23.1641]
[1642472015348,6.06439994,140.15,140.1,2.03079257]
[1642472015747,6.32439994,140.15,140.1,2.03079257]
[1642472016256,6.32439994,140.15,140.08,33.6777]
[1642472016447,73.934,140.14,140.04,77.6187]
[1642472016650,74.184,140.14,140.05,1.53886089]
[1642472016849,10.23,140.13,140.03,6.10201464]
[1642472017050,2.855,140.12,140.03,6.10201464]
[1642472017352,43.62323354,140.11,140.05,4.07380184]
[1642472017575,10.7111,140.09,140.05,4.07380184]
[1642472017778,36.3853893,140.08,140.05,4.07380184]
[1642472018275,36.3853893,140.08,140.02,1.378092]
[1642472018484,6.06439994,140.07,140.02,1.378092]
[1642472018677,6.06439994,140.07,140.03,0.25]
[1642472019779,6.06439994,140.07,140.03,10.9592]
[1642472019978,6.06439994,140.07,140.02,1.378092]
[1642472020579,6.06439994,140.07,140.02,7.378092]
[1642472021080,6.06439994,140.07,140.02,1.378092]
[1642472021281,6.32439994,140.07,140.02,1.378092]
[1642472022880,6.32439994,140.07,140.02,44.34076532]
[1642472023081,0.26,140.07,140.02,44.34076532]
[1642472023282,0.25,140.07,140.02,44.34076532]
[1642472024882,0.25,140.07,140.02,55.05076532]
[1642472025785,0.25,140.09,140.02,55.05076532]
[1642472025986,0.25,140.09,140.02,57.90676532]
[1642472026187,25.9657,140.12,140.03,22.873]
[1642472026388,25.9657,140.12,140.05,10.7075]
[1642472026592,40.64832496,140.11,140.05,51.05842379]
[1642472027088,40.64832496,140.11,140.06,0.25]
[1642472027389,40.64832496,140.11,140.05,40.35092379]
[1642472027590,40.64832496,140.11,140.03,25.728]
[1642472027789,40.64832496,140.11,140.04,0.25]
[1642472027988,40.64832496,140.11,140.05,2.855]
[1642472028188,40.90832496,140.11,140.03,22.873]
[1642472028389,2.855,140.1,140.03,22.873]
[1642472028789,0.25,140.09,140.03,22.873]
[1642472028990,0.25,140.09,140.04,4.07422501]
[1642472029191,2.855,140.1,140.05,35.98587399]
[1642472029392,40.64832496,140.11,140.05,39.09087399]
[1642472029990,2.855,140.14,140.05,39.09087399]
[1642472030191,13.5612,140.16,140.06,10.7065]
[1642472030392,0.25,140.13,140.06,37.6977]
[1642472031396,2.855,140.14,140.06,37.6977]
[1642472031594,2.855,140.14,140.06,43.6977]
[1642472032796,0.25,140.13,140.06,43.6977]
[1642472033497,0.25,140.13,140.06,26.9912]
[1642472033696,0.25,140.13,140.08,1.378092]
[1642472033896,10.9579,140.13,140.08,1.378092]
[1642472034095,34.7854598,140.12,140.08,1.378092]
[1642472034300,71.33,140.11,140.08,1.378092]
[1642472034596,2.855,140.1,140.08,1.378092]
[1642472034795,0.25,140.09,140.08,1.378092]
[1642472034996,13.8161,140.09,140.08,1.378092]
[1642472035197,58.58276197,140.09,140.08,1.378092]
[1642472035396,55.72776197,140.09,140.08,1.378092]
[1642472037297,55.98776197,140.09,140.08,1.378092]
[1642472039099,55.98776197,140.09,140.08,0.878092]
[1642472047537,45.27666197,140.09,140.08,0.878092]
[1642472049638,55.98726197,140.09,140.08,0.878092]
[1642472049843,55.72726197,140.09,140.08,0.878092]
[1642472050139,45.01666197,140.09,140.08,0.878092]
[1642472051041,44.76666197,140.09,140.08,0.878092]
[1642472052043,6.06439994,140.09,140.08,0.878092]
[1642472052845,3.03219997,140.09,140.08,0.878092]
[1642472053045,80.88115425,140.11,140.08,0.878092]
[1642472053246,0.26,140.09,140.08,0.878092]
[1642472057949,47.04715425,140.11,140.08,0.878092]
[1642472058152,15.14008777,140.13,140.08,0.878092]
[1642472058354,12.28508777,140.13,140.08,0.878092]
[1642472058652,1.57688777,140.13,140.08,0.878092]
[1642472059253,40.73413677,140.12,140.08,0.878092]
[1642472060753,51.44243677,140.12,140.08,0.878092]
[1642472061354,51.70243677,140.12,140.08,0.878092]
[1642472062152,10.9683,140.12,140.08,0.878092]
[1642472062355,10.7083,140.12,140.08,0.878092]
[1642472062655,2.855,140.16,140.09,10.23]
[1642472062854,2.854,140.19,140.1,3.104]
[1642472063054,48.71088598,140.18,140.11,54.52112278]
[1642472063258,48.71088598,140.18,140.12,22.6726]
[1642472063655,48.71088598,140.18,140.12,28.6726]
[1642472065057,0.25,140.17,140.12,28.6726]
[1642472065262,3.104,140.17,140.12,28.6726]
[1642472065658,2.854,140.17,140.12,28.6726]
[1642472066357,3.114,140.17,140.12,28.6726]
[1642472066559,48.71088598,140.18,140.12,31.5266]
[1642472067159,2.854,140.19,140.13,0.25]
[1642472067357,1.48200397,140.2,140.14,2.853]
[1642472068158,38.96578477,140.2,140.14,69.14864699]
[1642472069059,1.48200397,140.2,140.14,69.14864699]
[1642472069262,1.48200397,140.2,140.15,10.48]
[1642472069460,2.853,140.26,140.15,10.48]
[1642472069663,2.853,140.26,140.16,34.0083]
[1642472069864,2.353,140.26,140.17,0.25]
[1642472070062,49.4140965,140.27,140.18,2.852]
[1642472070263,49.4140965,140.27,140.19,0.25]
[1642472070464,49.4140965,140.27,140.2,2.852]
[1642472070862,49.4140965,140.27,140.21,0.25]
[1642472071965,49.6740965,140.27,140.2,58.1551359]
[1642472072768,49.4140965,140.27,140.21,0.25]
[1642472073766,0.25,140.26,140.21,0.25]
[1642472073968,49.4140965,140.27,140.21,0.25]
[1642472074170,49.6740965,140.27,140.21,0.25]
[1642472074774,0.25,140.26,140.2,68.3851359]
[1642472074974,3.102,140.26,140.2,68.3851359]
[1642472075172,3.102,140.26,140.2,20.9258]
[1642472075772,3.102,140.26,140.2,10.23]
[1642472077177,3.362,140.26,140.2,10.23]
[1642472081200,72.8649091,140.25,140.16,13.082]
[1642472081397,72.8649091,140.25,140.12,78.0583]
[1642472081398,13.082,140.24,140.12,2.852]
[1642472081599,71.08,140.23,140.1,2.853]
[1642472081798,13.333,140.22,140.1,2.853]
[1642472081998,38.40862949,140.21,140.11,34.91684769]
[1642472082200,2.853,140.2,140.11,34.91684769]
[1642472082498,47.13012781,140.18,140.11,34.91684769]
[1642472082701,60.68792781,140.18,140.11,34.91684769]
[1642472082898,2.854,140.19,140.12,0.25]
[1642472083098,3.103,140.2,140.13,2.853]
[1642472083901,47.47993059,140.2,140.14,46.52624378]
[1642472084499,58.18263059,140.2,140.14,46.52624378]
[1642472085300,58.44263059,140.2,140.14,46.52624378]
[1642472087503,47.73993059,140.2,140.14,46.52624378]
[1642472087702,3.363,140.2,140.14,46.52624378]
[1642472088703,39.8322842,140.2,140.14,46.52624378]
[1642472089504,3.363,140.2,140.14,46.52624378]
[1642472090405,52.13637356,140.2,140.14,46.52624378]
[1642472091509,3.363,140.2,140.14,46.52624378]
[1642472091708,0.26,140.2,140.15,2.853]
[1642472091905,2.853,140.22,140.15,2.853]
[1642472092107,10.7005,140.23,140.15,2.853]
[1642472092505,10.2005,140.23,140.15,2.853]
[1642472092907,2.853,140.24,140.15,13.5531]
[1642472093108,35.4906,140.25,140.16,0.25]
[1642472093109,38.3436,140.25,140.16,0.25]
[1642472093311,44.3436,140.25,140.16,1.77787487]
[1642472093708,38.3436,140.25,140.16,0.51]
[1642472093910,38.3436,140.25,140.17,43.41224667]
[1642472094212,27.6446,140.25,140.17,54.11044667]
[1642472094409,2.853,140.25,140.17,54.37044667]
[1642472095210,27.53428189,140.26,140.17,54.37044667]
[1642472095410,33.53428189,140.26,140.18,2.852]
[1642472095612,0.25,140.25,140.18,13.5495]
[1642472095810,0.25,140.25,140.18,10.9575]
[1642472096210,0.25,140.25,140.18,10.6975]
[1642472096412,0.25,140.25,140.17,2.852]
[1642472096614,2.852,140.24,140.13,25.984]
[1642472096818,0.25,140.23,140.13,25.984]
[1642472097014,2.853,140.22,140.13,25.984]
[1642472097415,40.87875011,140.21,140.13,69.15375969]
[1642472097618,51.58065011,140.21,140.13,79.85545969]
[1642472099420,40.87875011,140.21,140.13,79.85545969]
[1642472100317,40.87875011,140.21,140.14,0.25]
[1642472100519,40.87875011,140.21,140.14,10.9504]
[1642472100719,0.25,140.21,140.14,10.9504]
[1642472101419,3.113,140.22,140.14,17.2104]
[1642472102120,0.26,140.22,140.15,2.853]
[1642472102320,0.25,140.23,140.16,10.6991]
[1642472102521,3.103,140.23,140.16,10.6991]
[1642472102821,13.8028,140.23,140.16,6.0]
[1642472103020,45.818597,140.22,140.16,53.98737549]
[1642472103219,2.853,140.21,140.16,53.98737549]
[1642472103421,3.103,140.21,140.16,53.98737549]
[1642472104051,2.853,140.21,140.16,53.98737549]
[1642472104252,2.853,140.24,140.17,0.25]
[1642472104453,2.853,140.24,140.17,3.102]
[1642472104651,2.852,140.25,140.17,3.102]
[1642472104851,2.852,140.25,140.17,33.2231]
[1642472105253,42.18955138,140.25,140.17,33.2231]
[1642472106153,0.25,140.24,140.17,33.2231]
[1642472106354,42.18955138,140.25,140.17,33.2231]
[1642472106553,53.14795138,140.25,140.17,43.9211]
[1642472107756,0.25,140.24,140.17,43.9211]
[1642472109260,10.9489,140.24,140.17,43.9211]
[1642472109460,10.9489,140.24,140.2,1.91082347]
[1642472109659,10.9489,140.24,140.2,3.82166118]
[1642472110259,11.2089,140.24,140.2,3.82166118]
[1642472110462,27.0,140.23,140.16,10.6994]
[1642472110658,27.0,140.23,140.09,2.853]
[1642472110659,71.08,140.21,140.09,2.853]
[1642472110860,71.08,140.19,140.08,3.94582665]
[1642472111061,2.854,140.18,140.08,3.94582665]
[1642472111259,71.08,140.17,140.08,3.94582665]
[1642472111462,47.61280083,140.16,140.08,3.94582665]
[1642472111661,47.61280083,140.16,140.07,46.63930111]
[1642472111662,47.86280083,140.16,140.07,46.63930111]
[1642472111862,53.86280083,140.16,140.07,46.63930111]
[1642472112662,10.7074,140.15,140.07,46.63930111]
[1642472112865,3.104,140.14,140.07,46.63930111]
[1642472113770,13.811,140.14,140.07,46.63930111]
[1642472113965,35.05803188,140.13,140.07,46.63930111]
[1642472114366,0.25,140.12,140.07,46.63930111]
[1642472114766,0.25,140.14,140.08,0.25]
[1642472114995,0.25,140.14,140.08,3.104]
[1642472115367,2.854,140.16,140.08,3.104]
[1642472115568,0.25,140.15,140.08,2.854]
[1642472116469,3.104,140.15,140.07,46.63930111]
[1642472116669,8.854,140.17,140.08,3.104]
[1642472116869,6.0,140.17,140.08,3.364]
[1642472117072,0.25,140.16,140.08,3.364]
[1642472117269,62.41489726,140.19,140.08,3.364]
[1642472117472,6.92586851,140.19,140.08,14.0674]
[1642472117672,4.07186851,140.19,140.09,10.23]
[1642472117971,4.07186851,140.2,140.1,3.104]
[1642472118172,4.07186851,140.2,140.11,10.23]
[1642472118372,4.07186851,140.2,140.13,44.54942131]
[1642472118571,4.07186851,140.2,140.13,55.24882131]
[1642472118771,4.33186851,140.2,140.14,0.25]
[1642472119171,4.07186851,140.2,140.14,0.25]
[1642472119372,2.854,140.23,140.14,0.25]
[1642472119575,2.854,140.23,140.16,35.75954043]
[1642472119771,0.25,140.22,140.16,35.75954043]
[1642472122976,0.25,140.22,140.17,0.25]
[1642472124376,3.103,140.24,140.17,0.25]
[1642472124879,2.853,140.24,140.17,10.9465]
[1642472125278,2.853,140.24,140.17,17.2065]
[1642472125780,0.26,140.24,140.19,45.18937706]
[1642472126077,10.6972,140.27,140.19,45.18937706]
[1642472126279,0.25,140.26,140.2,0.25]
[1642472127277,42.60809407,140.28,140.2,0.25]
[1642472127278,6.92386851,140.28,140.21,2.852]
[1642472127480,6.92386851,140.28,140.21,4.37597451]
[1642472127780,6.92386851,140.28,140.22,72.85397451]
[1642472128078,6.92386851,140.28,140.23,13.082]
[1642472128280,6.92386851,140.28,140.24,45.52863159]
[1642472128281,2.852,140.28,140.24,45.52863159]
[1642472128478,4.07186851,140.33,140.25,13.5418]
[1642472128679,4.07186851,140.33,140.25,23.7718]
[1642472128879,4.07186851,140.33,140.26,0.25]
[1642472129079,4.07186851,140.33,140.27,2.851]
[1642472129278,4.07186851,140.34,140.28,0.25]
[1642472129477,4.07186851,140.34,140.28,36.66313304]
[1642472129877,47.11121233,140.33,140.28,36.41313304]
[1642472130305,0.25,140.32,140.25,68.5543]
[1642472130505,0.25,140.32,140.25,57.8632]
[1642472130705,2.851,140.31,140.25,10.23]
[1642472131005,13.545,140.31,140.25,10.23]
[1642472131204,0.25,140.3,140.25,10.23]
[1642472131406,2.851,140.29,140.25,10.23]
[1642472131905,0.25,140.28,140.25,10.23]
[1642472132106,13.5462,140.29,140.25,10.23]
[1642472133305,0.25,140.28,140.25,10.23]
[1642472133506,0.25,140.28,140.22,36.79364297]
[1642472133804,0.25,140.28,140.23,0.25]
[1642472134507,0.25,140.28,140.22,36.79364297]
[1642472134906,0.25,140.28,140.23,0.25]
[1642472136607,2.48290803,140.29,140.23,0.25]
[1642472136907,2.0353588,140.27,140.23,0.25]
[1642472137610,2.0353588,140.27,140.23,0.1796895]
[1642472137810,2.0353588,140.27,140.22,39.58433247]
[1642472138209,2.0353588,140.27,140.22,3.111]
[1642472138611,2.0353588,140.27,140.23,10.6931]
[1642472138809,2.0353588,140.28,140.22,3.111]
[1642472139211,2.0353588,140.28,140.23,35.94734828]
[1642472139710,2.0353588,140.27,140.23,35.94734828]
[1642472141410,2.2953588,140.27,140.23,35.94734828]
[1642472142110,2.0353588,140.27,140.23,35.94734828]
[1642472142310,2.0353588,140.27,140.24,2.852]
[1642472142709,2.0353588,140.27,140.25,0.25]
[1642472142911,2.0353588,140.27,140.24,2.852]
[1642472143112,41.24442425,140.28,140.23,2.851]
[1642472143312,41.24442425,140.28,140.24,0.25]
[1642472143811,2.0353588,140.27,140.24,0.25]
[1642472144312,2.0353588,140.27,140.23,0.25]
[1642472145812,2.2953588,140.27,140.23,0.25]
[1642472147311,2.2953588,140.27,140.23,10.9431]
[1642472147312,2.0353588,140.27,140.23,10.9431]
[1642472147713,2.0353588,140.28,140.23,11.2031]
[1642472147915,2.0353588,140.28,140.24,2.851]
[1642472148313,2.0353588,140.28,140.25,47.79916386]
[1642472148914,2.0353588,140.28,140.25,48.05916386]
[1642472149214,2.0353588,140.28,140.25,47.79916386]
[1642472149414,2.0353588,140.28,140.25,48.05916386]
[1642472151214,2.0353588,140.29,140.25,48.05916386]
[1642472151415,2.0353588,140.29,140.25,47.79916386]
[1642472151614,2.0353588,140.29,140.23,2.851]
[1642472151814,2.0353588,140.29,140.24,0.25]
[1642472152616,2.0353588,140.29,140.24,44.02760438]
[1642472152818,2.0353588,140.29,140.24,44.28760438]
[1642472153017,2.0353588,140.28,140.24,44.28760438]
[1642472154419,2.0353588,140.29,140.24,44.28760438]
[1642472155422,2.0353588,140.3,140.24,44.28760438]
[1642472155825,46.09402889,140.3,140.24,44.28760438]
[1642472156023,56.78822889,140.3,140.24,44.28760438]
[1642472156323,2.2853588,140.29,140.23,10.23]
[1642472156524,5.1363588,140.29,140.23,10.23]
[1642472156823,5.3963588,140.29,140.23,10.23]
[1642472157024,2.0353588,140.28,140.23,10.23]
[1642472157223,2.0353588,140.28,140.23,46.72724345]
[1642472158224,2.0353588,140.28,140.23,10.23]
[1642472158626,2.851,140.27,140.21,1.3808547]
[1642472158826,5.1363588,140.27,140.21,1.3808547]
[1642472159029,11.1363588,140.27,140.21,1.3808547]
[1642472159228,43.20999262,140.26,140.21,1.3808547]
[1642472159427,2.852,140.25,140.21,1.3808547]
[1642472159627,9.537,140.25,140.21,1.3808547]
[1642472159828,10.7004,140.24,140.18,1.95393007]
[1642472160029,2.852,140.23,140.18,1.95393007]
[1642472160230,9.112,140.24,140.18,1.95393007]
[1642472160430,3.112,140.24,140.18,1.95393007]
[1642472160629,0.25,140.23,140.19,48.02692989]
[1642472160830,10.7021,140.22,140.19,48.02692989]
[1642472161032,6.06439994,140.21,140.19,48.02692989]
[1642472161730,0.25,140.23,140.19,48.02692989]
[1642472162331,0.25,140.23,140.19,47.52692989]
[1642472164578,0.25,140.23,140.16,2.852]
[1642472164770,0.25,140.23,140.16,3.112]
[1642472164969,10.9497,140.23,140.16,3.112]